bitfinex/quotes_ETHUSD_20251012
["timestamp","ask_amount","ask_price","bid_price","bid_amount"]
[1760259652055,7.82871712,3829.9,3829.8,0.002]
[1760259653027,8.46231712,3829.9,3829.8,0.002]
[1760259653434,9.2478353,3829.9,3829.8,0.002]
[1760259662992,9.2488353,3829.9,3829.8,0.002]
[1760259663193,0.6336,3829.3,3827.2,2.61287625]
[1760259663404,0.6336,3829.5,3827.1,8.78737619]
[1760259663405,3.24490695,3829.5,3829.4,0.002]
[1760259663688,7.89728984,3829.5,3829.4,0.002]
[1760259663892,9.14971499,3829.5,3829.4,0.002]
[1760259664191,10.77891888,3829.5,3829.4,0.002]
[1760259665485,11.57760742,3829.5,3829.4,0.002]
[1760259667378,13.49760742,3829.5,3829.4,0.002]
[1760259672429,4.0305321,3829.5,3829.4,0.002]
[1760259672656,5.3169321,3829.5,3829.4,0.002]
[1760259672794,0.78562515,3829.5,3829.4,0.002]
[1760259673122,3.3969321,3829.5,3829.4,0.002]
[1760259674230,4.0305321,3829.5,3829.4,0.002]
[1760259679762,3.3969321,3829.5,3829.4,0.002]
[1760259680073,4.0305321,3829.5,3829.4,0.002]
[1760259681333,4.0315321,3829.5,3829.4,0.002]
[1760259682353,4.4983321,3829.5,3829.4,0.002]
[1760259683059,4.0315321,3829.5,3829.4,0.002]
[1760259683221,3.8647321,3829.5,3829.4,0.002]
[1760259683422,4.4983321,3829.5,3829.4,0.002]
[1760259687466,5.56175272,3829.5,3829.4,0.002]
[1760259687669,6.01205272,3829.5,3829.4,0.002]
[1760259688070,4.0315321,3829.5,3829.4,0.002]
[1760259691933,9.48260353,3829.5,3829.4,0.002]
[1760259692134,9.93290353,3829.5,3829.4,0.002]
[1760259693135,4.0315321,3829.5,3829.4,0.002]
[1760259693340,4.4818321,3829.5,3829.4,0.002]
[1760259695795,4.0315321,3829.5,3829.4,0.002]
[1760259695995,4.1619321,3829.5,3829.4,0.002]
[1760259697041,10.88045152,3829.5,3829.4,0.002]
[1760259697348,13.25075152,3829.5,3829.4,0.002]
[1760259703632,13.12035152,3829.5,3829.4,0.002]
[1760259703842,13.12035152,3829.5,3829.0,0.002]
[1760259703843,11.85290353,3829.5,3829.0,0.002]
[1760259704024,11.85290353,3829.5,3826.2,3.69]
[1760259704025,2.61178437,3828.8,3826.2,3.69]
[1760259704229,0.6336,3827.3,3826.5,0.0042]
[1760259704549,0.6336,3827.6,3827.2,0.0042]
[1760259704746,1.41955858,3827.4,3827.2,0.88335762]
[1760259705054,4.03235251,3827.4,3827.2,0.87915762]
[1760259705284,5.45107143,3827.3,3826.8,14.5]
[1760259705554,3.24647625,3827.2,3826.8,14.5]
[1760259706260,0.6336,3827.2,3826.8,14.5]
[1760259706765,3.70967625,3827.2,3826.8,14.5]
[1760259707545,3.24647625,3827.2,3826.8,14.5]
[1760259709025,3.70967625,3827.2,3826.8,14.5]
[1760259709232,3.70967625,3827.2,3826.7,59.04]
[1760259709731,3.70967625,3827.2,3826.7,73.54]
[1760259710455,3.70967625,3827.2,3826.7,59.04]
[1760259710456,4.9656221,3827.2,3826.7,59.04]
[1760259711250,3.70967625,3827.2,3826.7,59.04]
[1760259712460,3.07607625,3827.2,3826.7,59.04]
[1760259713860,3.70967625,3827.2,3826.7,59.04]
[1760259714048,4.49576046,3827.2,3826.7,59.04]
[1760259715935,0.78608421,3827.2,3826.7,61.65320695]
[1760259716136,2.61282358,3827.3,3827.1,9.66611381]
[1760259716373,8.06394768,3827.2,3827.1,8.78737619]
[1760259716851,8.69754768,3827.2,3827.1,8.78737619]
[1760259717046,3.24647625,3827.2,3827.1,8.78737619]
[1760259717358,3.24647625,3827.2,3827.1,8.78937619]
[1760259719342,3.70927625,3827.2,3827.1,8.78937619]
[1760259719546,3.24647625,3827.2,3827.1,8.78937619]
[1760259721025,3.70927625,3827.2,3827.1,8.78937619]
[1760259721266,4.8996257,3827.2,3827.1,8.78937619]
[1760259725645,3.70927625,3827.2,3827.1,8.78937619]
[1760259725842,8.69754768,3827.2,3827.1,8.78937619]
[1760259726042,9.16034768,3827.2,3827.1,8.78937619]
[1760259727543,13.03924077,3827.2,3827.1,8.78937619]
[1760259728284,13.8253394,3827.2,3827.1,8.78937619]
[1760259728486,15.46914802,3827.2,3827.1,8.78937619]
[1760259729164,17.38914802,3827.2,3827.1,8.78937619]
[1760259730657,17.38914802,3827.2,3827.1,4.16848589]
[1760259731763,17.38914802,3827.2,3826.7,59.042]
[1760259731764,3.24674936,3826.8,3826.7,59.042]
[1760259732085,8.37453162,3826.8,3826.7,59.042]
[1760259732383,9.66529142,3826.8,3826.7,59.042]
[1760259732560,10.45146421,3826.8,3826.7,59.042]
[1760259739182,17.03644647,3826.8,3826.7,54.4211097]
[1760259739388,5.16702253,3826.4,3826.3,0.002]
[1760259739582,5.16702253,3826.4,3826.2,3.215]
[1760259739583,5.16709083,3826.3,3826.2,3.215]
[1760259739901,5.16715914,3826.2,3826.1,13.47758707]
[1760259740099,5.62995914,3826.2,3826.1,13.47758707]
[1760259740295,1.0964,3826.2,3826.1,13.47758707]
[1760259740520,0.4628,3826.8,3826.1,13.47758707]
[1760259740719,0.78621606,3826.3,3826.2,4.55841785]
[1760259741045,4.66498226,3826.7,3826.2,16.00745871]
[1760259741251,3.075493,3827.5,3826.3,3.05088025]
[1760259741252,4.66498226,3826.8,3826.3,3.05088025]
[1760259741458,4.66498226,3826.8,3826.4,0.4374]
[1760259741634,0.78610069,3827.4,3826.5,0.4374]
[1760259741820,0.78610069,3827.4,3826.6,2.61322628]
[1760259742017,4.66498226,3827.3,3826.7,0.74246263]
[1760259742222,4.66498226,3827.0,3826.7,0.30506263]
[1760259742443,4.66498226,3827.0,3826.2,16.00745871]
[1760259742622,4.66498226,3826.6,3826.2,16.00745871]
[1760259742821,4.66498226,3826.6,3826.2,19.05838597]
[1760259743018,1.41969863,3827.0,3826.2,19.05838597]
[1760259743019,4.66498226,3826.4,3826.2,16.00745871]
[1760259743351,0.6336,3826.3,3826.1,13.47758707]
[1760259743541,0.6336,3826.7,3826.1,13.47758707]
[1760259744048,0.6336,3826.7,3825.8,2.61382909]
[1760259744417,0.6336,3826.5,3824.6,14.4333947]
[1760259744618,0.6336,3826.3,3825.7,2.61384709]
[1760259744848,0.55714754,3826.2,3825.7,2.61384709]
[1760259745049,0.6336,3826.0,3825.8,14.5]
[1760259745256,1.19074754,3825.9,3825.8,14.5]
[1760259745420,0.6336,3825.9,3825.8,14.5]
[1760259745914,0.6336,3825.9,3824.7,3.36333947]
[1760259746111,0.6336,3825.9,3825.5,2.61397832]
[1760259746517,0.6336,3826.4,3825.6,14.5]
[1760259747252,0.6336,3826.2,3825.6,14.5]
[1760259747548,0.6336,3826.2,3825.6,17.11396339]
[1760259748247,0.6336,3826.2,3825.6,14.5]
[1760259749036,0.6336,3826.2,3825.6,17.11395326]
[1760259749342,0.764,3826.2,3825.6,14.5]
[1760259749547,0.764,3826.2,3825.6,17.1139622]
[1760259750235,0.6336,3826.1,3825.6,17.1139622]
[1760259750434,0.6336,3826.1,3825.9,2.61374846]
[1760259750638,0.6336,3826.1,3825.6,14.5]
[1760259750848,0.6336,3826.2,3825.8,0.1304]
[1760259751420,0.6336,3826.3,3825.8,0.1304]
[1760259751838,0.6336,3826.3,3825.8,2.74422989]
[1760259753849,0.6336,3826.3,3826.0,2.61369038]
[1760259754253,0.1304,3826.4,3826.0,14.5]
[1760259754425,3.06324593,3827.6,3826.3,2.61342873]
[1760259754748,2.32144811,3827.8,3826.6,2.6132392]
[1760259754749,0.9164183,3827.2,3826.6,2.6132392]
[1760259754955,0.6336,3827.1,3826.6,2.6132392]
[1760259755137,0.9164183,3827.2,3826.6,2.7436392]
[1760259755652,0.9164183,3827.2,3826.7,2.61320852]
[1760259755869,0.6336,3827.1,3826.6,0.1304]
[1760259756066,0.6336,3827.1,3826.7,2.61319216]
[1760259756270,0.6336,3827.1,3826.6,2.74366175]
[1760259757150,0.001,3826.7,3826.6,2.74366175]
[1760259758738,0.001,3826.7,3826.6,17.24366175]
[1760259762057,0.001,3826.7,3826.6,2.74366175]
[1760259762438,0.001,3826.7,3826.6,17.24366175]
[1760259763560,0.001,3826.7,3826.6,14.6304]
[1760259764567,0.6336,3826.6,3825.8,2.61578051]
[1760259764858,3.24706444,3826.4,3825.8,0.002]
[1760259765159,0.6336,3826.2,3825.8,0.002]
[1760259765661,0.6336,3826.0,3825.8,0.002]
[1760259766154,0.4511,3826.0,3825.8,0.002]
[1760259766760,1.0847,3825.9,3825.8,0.002]
[1760259766963,1.3003,3825.9,3825.8,0.002]
[1760259767130,2.08661909,3825.9,3825.8,0.002]
[1760259767462,4.70038317,3825.9,3825.8,0.002]
[1760259767759,6.62038317,3825.9,3825.8,0.002]
[1760259767956,7.74948097,3825.9,3825.8,0.002]
[1760259768347,2.61403738,3825.5,3825.4,0.002]
[1760259768549,14.92291549,3825.5,3825.4,0.002]
[1760259768862,3.69873738,3825.5,3825.4,0.002]
[1760259771269,5.61873738,3825.5,3825.4,0.002]
[1760259771471,7.87093441,3825.5,3825.4,0.002]
[1760259772343,2.61424888,3825.2,3824.1,2.61497555]
[1760259772537,1.0847,3825.1,3823.6,1.92]
[1760259772773,0.6336,3825.1,3823.8,2.61519953]
[1760259773036,0.6336,3825.0,3824.4,2.6147214]
[1760259773261,0.6336,3825.0,3824.1,2.61497734]
[1760259773470,0.6336,3824.8,3824.2,14.5]
[1760259773669,0.6336,3824.8,3824.2,17.11492099]
[1760259773968,0.6336,3825.0,3824.2,17.11492099]
[1760259774140,0.6336,3825.0,3824.3,2.61483885]
[1760259774340,0.6336,3825.0,3824.2,14.5]
[1760259774540,0.6336,3825.0,3824.3,2.61485011]
[1760259774758,0.1304,3824.8,3824.3,2.61485011]
[1760259774953,0.1304,3824.8,3824.2,17.11490637]
[1760259775776,0.1304,3824.8,3824.3,2.61485466]
[1760259776076,0.6336,3824.7,3824.3,2.61485466]
[1760259776375,0.6336,3824.7,3824.1,14.6324]
[1760259776559,0.6336,3824.7,3824.3,2.61485512]
[1760259776763,0.6336,3824.7,3824.2,2.61487795]
[1760259777271,0.6336,3824.7,3824.5,2.61466421]
[1760259777440,0.6336,3824.7,3824.2,2.01238486]
[1760259777441,0.6336,3824.7,3824.4,2.6147805]
[1760259777640,0.6336,3824.7,3824.3,2.6148419]
[1760259778270,0.6336,3824.7,3824.2,2.01238486]
[1760259778271,0.001,3825.5,3824.8,2.61445954]
[1760259778469,0.001,3825.5,3824.9,2.61444339]
[1760259778671,0.001,3825.5,3824.9,2.6144268]
[1760259779181,0.001,3825.5,3825.0,2.61437908]
[1760259779679,0.001,3825.5,3825.1,2.61427552]
[1760259779875,0.001,3825.5,3824.9,3.13734806]
[1760259780177,0.001,3825.5,3825.0,2.6143151]
[1760259780745,0.001,3825.5,3825.4,2.61410571]
[1760259781039,0.474,3825.5,3824.2,2.01238486]
[1760259781243,1.1066,3825.4,3824.4,2.6147759]
[1760259781476,2.5536,3825.0,3824.3,14.5]
[1760259781712,0.6336,3824.8,3824.1,0.002]
[1760259782061,0.6336,3824.8,3824.1,17.11697646]
[1760259782267,0.6336,3824.8,3824.2,2.61491723]
[1760259782575,0.6336,3824.8,3824.3,2.61482893]
[1760259782781,0.6336,3824.8,3824.2,2.61491687]
[1760259782951,0.6336,3824.9,3824.2,2.61491687]
[1760259783154,0.6336,3824.9,3824.1,17.11695878]
[1760259783348,0.6336,3825.0,3824.5,2.61471841]
[1760259783846,0.6336,3825.1,3824.4,2.61477683]
[1760259784069,0.6336,3825.2,3824.5,2.61466707]
[1760259785082,0.6336,3825.2,3824.1,14.502]
[1760259785379,0.001,3825.5,3824.7,2.61456227]
[1760259785765,0.001,3825.5,3824.8,2.61451493]
[1760259786580,0.001,3825.5,3824.5,2.61471477]
[1760259786581,0.001,3825.5,3824.9,2.61442822]
[1760259786786,0.001,3825.5,3824.7,2.61456555]
[1760259787182,0.001,3825.5,3825.0,2.61437637]
[1760259787973,0.6336,3825.4,3824.9,2.61442553]
[1760259788166,0.6336,3825.2,3824.9,2.61442553]
[1760259788685,0.6336,3825.2,3824.8,2.61451564]
[1760259788997,0.6336,3825.2,3824.7,0.1304]
[1760259789384,0.6336,3825.2,3824.7,2.7449585]
[1760259789718,0.6336,3825.2,3824.8,2.61450449]
[1760259789995,0.6336,3825.2,3824.7,2.74493668]
[1760259790371,0.6336,3825.2,3824.7,0.1304]
[1760259790704,0.6336,3825.0,3824.7,0.1304]
[1760259791298,0.6336,3825.2,3824.7,0.1304]
[1760259791597,0.6336,3825.0,3824.7,0.1304]
[1760259792204,0.473,3825.0,3824.7,0.1304]
[1760259792495,0.6336,3824.8,3824.1,14.502]
[1760259792701,0.764,3824.8,3824.2,0.1304]
[1760259793272,0.764,3824.8,3824.2,2.74532508]
[1760259793470,0.764,3824.8,3824.2,0.1304]
[1760259794179,0.764,3824.8,3824.4,2.61477738]
[1760259794508,0.764,3824.8,3824.3,2.61483796]
[1760259795295,0.764,3824.8,3824.2,0.1304]
[1760259795494,0.6336,3824.6,3824.2,0.1304]
[1760259795700,0.6336,3824.7,3824.2,2.74531399]
[1760259795902,0.6336,3824.7,3824.2,0.1304]
[1760259796573,0.6336,3824.5,3824.2,0.1304]
[1760259796998,0.6336,3824.3,3824.2,0.1304]
[1760259799609,0.6336,3824.7,3824.2,0.1304]
[1760259799924,0.6336,3824.7,3824.1,14.502]
[1760259799925,0.6336,3824.7,3824.3,2.61481183]
[1760259800217,1.92,3825.3,3824.3,2.61481183]
[1760259800218,0.6336,3825.2,3824.3,2.61481183]
[1760259800425,0.6336,3825.0,3824.3,2.61481183]
[1760259800718,0.22481864,3825.4,3824.1,17.11699111]
[1760259800719,0.001,3825.5,3824.7,2.61453716]
[1760259801034,0.6336,3825.4,3824.6,2.61463864]
[1760259801378,0.474,3825.5,3824.6,2.61463864]
[1760259801581,0.473,3825.4,3824.6,2.61463864]
[1760259801779,0.473,3825.4,3824.1,14.502]
[1760259801780,1.1066,3825.3,3824.5,2.61471571]
[1760259802419,1.1066,3825.3,3824.2,2.61491768]
[1760259802722,1.1066,3825.3,3824.4,2.6147275]
[1760259802924,1.1066,3825.3,3824.2,2.61491768]
[1760259803103,1.1066,3825.3,3824.4,2.61473485]
[1760259803416,0.6336,3825.1,3824.4,2.61477472]
[1760259803604,0.6336,3825.1,3824.5,2.61471291]
[1760259803784,0.6346,3825.5,3824.1,14.502]
[1760259803987,0.6346,3825.5,3824.6,2.61461171]
[1760259804333,2.6558085,3825.5,3824.6,2.6145955]
[1760259804799,5.26987066,3825.5,3824.5,2.61472017]
[1760259804990,0.6336,3825.3,3824.4,2.61476283]
[1760259805181,0.6336,3825.3,3824.5,2.61471873]
[1760259806484,0.6336,3825.3,3824.6,2.61462722]
[1760259807102,0.6336,3825.3,3824.7,2.61457118]
[1760259807481,0.6336,3825.3,3824.6,2.61463132]
[1760259808613,0.6336,3825.3,3824.7,14.5]
[1760259808829,0.6336,3825.4,3824.7,14.5]
[1760259808997,0.001,3825.5,3824.9,2.61443307]
[1760259809194,0.001,3825.5,3824.8,2.61450581]
[1760259809787,0.6336,3825.2,3824.7,14.6304]
[1760259809983,0.1314,3825.5,3825.4,2.61410571]
[1760259810291,0.001,3825.5,3825.4,2.61410571]
[1760259810488,0.001,3825.5,3825.4,2.74450571]
[1760259811237,0.001,3825.5,3825.4,4.66450571]
[1760259811404,0.001,3825.5,3825.4,19.16450571]
[1760259811607,0.001,3825.5,3825.4,21.34237992]
[1760259841271,0.001,3827.1,3827.0,2.6130128]
[1760259841831,0.001,3827.1,3827.0,4.5330128]
[1760259841978,0.001,3827.1,3827.0,19.0330128]
[1760259844485,0.001,3827.1,3825.6,2.61396905]
[1760259844780,0.001,3827.1,3825.2,2.61423782]
[1760259844979,0.001,3827.1,3826.7,2.61318007]
[1760259845180,0.001,3827.1,3826.8,2.61314237]
[1760259845348,0.001,3827.1,3826.9,14.5]
[1760259848087,0.001,3827.1,3826.9,17.1130559]
[1760259848476,0.001,3827.1,3826.9,14.5]
[1760259848714,0.6336,3826.9,3825.0,2.61437908]
[1760259848887,4.26611626,3826.9,3826.6,2.61328482]
[1760259849213,4.26611626,3826.9,3826.5,2.61334158]
[1760259849393,4.26611626,3826.9,3826.4,2.61340837]
[1760259849605,2.34611626,3826.9,3826.2,2.61350216]
[1760259849785,2.5536,3826.9,3826.4,2.61341518]
[1760259849981,2.5536,3826.9,3825.2,1.92]
[1760259850312,2.5536,3826.9,3826.4,2.61336639]
[1760259850484,2.5536,3826.9,3826.5,2.61333663]
[1760259851392,2.5536,3826.9,3826.5,2.74373663]
[1760259851573,0.6336,3826.7,3826.5,2.74373663]
[1760259851775,5.34097512,3826.6,3826.5,2.74373663]
[1760259853067,5.34097512,3826.6,3826.5,0.1304]
[1760259853411,5.34097512,3826.6,3826.5,2.74375424]
[1760259854206,5.34097512,3826.6,3826.5,17.24375424]
[1760259855300,5.34097512,3826.6,3826.5,14.6304]
[1760259856276,5.34097512,3826.6,3826.5,17.24375424]
[1760259857285,5.34097512,3826.6,3826.5,14.6304]
[1760259857587,0.6336,3826.6,3826.5,14.6304]
[1760259857788,5.34097512,3826.6,3826.5,14.6304]
[1760259858191,5.87517263,3826.6,3826.5,0.1304]
[1760259858688,0.6336,3826.5,3825.7,2.61389969]
[1760259858882,0.6336,3826.5,3824.8,2.61448303]
[1760259858883,4.70737512,3825.8,3824.8,2.61448303]
[1760259859087,0.6336,3826.5,3825.5,2.6139815]
[1760259859271,0.66459751,3826.6,3826.1,2.61358485]
[1760259859272,5.34097512,3826.2,3826.1,2.61358485]
[1760259859476,0.6336,3826.1,3826.0,0.1304]
[1760259860702,1.63859751,3826.1,3826.0,0.1304]
[1760259861314,4.25222496,3826.1,3826.0,0.1304]
[1760259861515,1.76899751,3826.1,3825.5,0.1304]
[1760259861816,0.6336,3825.5,3824.9,14.5]
[1760259862113,5.34097512,3825.0,3824.9,14.5]
[1760259862284,5.34097512,3825.0,3824.5,2.61470953]
[1760259862484,5.34097512,3825.0,3824.6,2.61465251]
[1760259862485,4.70737512,3824.7,3824.6,2.61465251]
[1760259862794,4.70737512,3824.7,3824.6,17.11465251]
[1760259863920,4.70737512,3824.7,3824.6,14.5]
[1760259865804,0.6336,3824.6,3824.3,0.002]
[1760259866006,5.34097512,3824.4,3824.3,0.002]
[1760259866383,5.34097512,3824.4,3824.1,0.03037653]
[1760259866384,3.24852599,3824.2,3824.1,0.03037653]
[1760259866584,3.47367274,3824.2,3824.1,0.03037653]
[1760259866809,3.47367274,3824.2,3821.8,2.61653823]
[1760259866810,0.6336,3824.0,3821.4,7.32417015]
[1760259867007,0.6336,3824.0,3820.9,0.51803408]
[1760259867008,0.6336,3824.0,3822.7,2.61590756]
[1760259867211,5.34097512,3824.0,3823.5,2.61539419]
[1760259867604,5.34097512,3824.0,3823.5,17.11539419]
[1760259867832,5.34097512,3824.0,3823.5,14.5]
[1760259868197,5.34097512,3824.0,3823.6,2.61532943]
[1760259868536,5.34097512,3824.0,3820.3,2.61757613]
[1760259868537,10.89710539,3824.0,3820.3,2.61757613]
[1760259868745,2.5536,3823.9,3821.1,4.70737512]
[1760259868892,4.70737512,3823.3,3822.9,2.61577981]
[1760259869092,5.17811263,3823.3,3823.0,2.61569101]
[1760259869348,0.6336,3823.2,3822.7,14.5]
[1760259869524,0.6336,3823.6,3822.8,2.61588364]
[1760259869525,4.70737512,3822.9,3822.8,2.61588364]
[1760259869694,4.70737512,3822.9,3822.7,14.5]
[1760259869695,4.70737512,3822.9,3822.7,17.11595034]
[1760259869898,4.70737512,3823.1,3822.7,14.5]
[1760259870214,4.70737512,3823.1,3823.0,2.61574679]
[1760259871228,4.70737512,3823.1,3822.9,2.61580307]
[1760259871430,4.70737512,3823.1,3823.0,2.61574679]
[1760259871598,4.71551702,3823.1,3823.0,2.61574679]
[1760259871794,2.58096471,3824.5,3823.7,2.61526793]
[1760259872018,0.1304,3824.0,3823.6,2.61531582]
[1760259872406,0.1304,3824.0,3823.5,2.74578178]
[1760259872598,0.4359,3823.9,3823.5,2.74578178]
[1760259872809,0.6336,3823.8,3823.6,2.61532764]
[1760259873003,0.6336,3823.9,3823.5,2.74579169]
[1760259873209,0.6336,3823.9,3823.5,0.1304]
[1760259873532,0.6336,3823.9,3823.5,2.74579835]
[1760259875310,0.1304,3824.0,3823.6,2.61532664]
[1760259875658,0.1304,3824.0,3823.7,2.61522191]
[1760259876125,0.1304,3824.0,3823.6,2.61531594]
[1760259876496,0.1304,3824.0,3823.7,2.61525323]
[1760259876902,0.1304,3824.0,3823.8,2.61519623]
[1760259877110,0.1304,3824.0,3822.7,14.5]
[1760259877111,0.47073751,3824.7,3822.7,14.5]
[1760259877304,0.1304,3824.5,3824.1,2.61494212]
[1760259877505,0.6336,3824.4,3823.9,0.1304]
[1760259877721,0.6336,3824.4,3823.9,2.74551985]
[1760259878197,0.6336,3824.4,3823.9,0.1304]
[1760259878438,0.6336,3824.4,3823.9,2.74552755]
[1760259879002,0.6336,3824.4,3824.1,2.61498194]
[1760259879203,0.6336,3824.4,3823.9,0.1304]
[1760259879204,0.6336,3824.4,3824.0,2.6150557]
[1760259879498,0.6336,3824.4,3824.1,2.61499411]
[1760259880102,0.6336,3824.4,3824.0,2.61504149]
[1760259880474,0.6522,3825.3,3824.0,1.98606386]
[1760259880682,0.1304,3824.9,3824.7,2.6145838]
[1760259881576,0.1304,3824.9,3824.8,2.61451579]
[1760259882268,0.1304,3824.9,3824.7,2.61456541]
[1760259882695,0.1304,3824.9,3824.8,2.61451579]
[1760259883808,0.1304,3825.3,3824.9,2.61440307]
[1760259884127,0.1304,3825.3,3825.1,2.61425231]
[1760259884411,0.1304,3825.3,3825.0,2.61435483]
[1760259884776,0.1304,3825.3,3825.1,2.61430597]
[1760259885208,0.1304,3826.1,3825.2,2.74464239]
[1760259885377,0.1304,3826.1,3825.9,2.61375227]
[1760259886537,0.1304,3826.1,3825.5,0.1304]
[1760259886740,0.6336,3826.0,3825.7,2.61389121]
[1760259887094,0.6336,3826.0,3825.8,2.61382117]
[1760259887509,0.6336,3826.0,3825.5,0.1304]
[1760259887718,2.14113983,3826.0,3825.5,0.1304]
[1760259887918,2.14113983,3826.0,3825.7,2.61384766]
[1760259888293,2.14113983,3826.0,3825.8,2.61381978]
[1760259889194,2.14213983,3826.0,3825.8,2.61381978]
[1760259890308,0.22725398,3825.9,3825.6,14.5]
[1760259890636,0.6336,3825.6,3825.4,2.61409687]
[1760259890800,0.6336,3825.6,3825.3,2.61415204]
[1760259891000,0.6336,3825.6,3825.1,2.7446495]
[1760259891001,1.0874,3825.6,3825.1,2.61429854]
[1760259891226,0.6336,3825.4,3825.0,2.61431405]
[1760259891538,0.6336,3825.1,3824.5,14.5]
[1760259891693,0.6336,3824.8,3824.3,0.1304]
[1760259891898,0.764,3824.6,3823.9,0.1304]
[1760259892132,0.6336,3824.4,3823.6,0.002]
[1760259892339,0.6336,3824.1,3823.6,0.002]
[1760259892839,0.4538,3824.0,3823.6,0.002]
[1760259893008,0.4538,3824.0,3823.6,2.61730987]
[1760259893209,0.6336,3823.8,3823.6,0.002]
[1760259893436,0.764,3823.7,3823.6,0.002]
[1760259893624,1.2178,3823.7,3823.6,0.002]
[1760259896196,0.6336,3824.4,3823.6,2.61732635]
[1760259896399,0.6336,3824.0,3823.6,2.61732635]
[1760259896830,0.6336,3824.0,3823.7,2.61526238]
[1760259898133,0.6336,3824.0,3823.6,0.002]
[1760259898332,0.6336,3824.0,3823.6,2.61730884]
[1760259898725,0.6336,3824.0,3823.7,2.61524878]
[1760259899525,0.6336,3824.0,3823.6,2.61732346]
[1760259899798,1.0983,3824.0,3823.6,2.61732346]
[1760259899998,1.0983,3824.0,3823.7,2.61525561]
[1760259900199,0.6336,3824.0,3823.7,2.61525561]
[1760259900830,0.6336,3824.0,3823.8,2.61518863]
[1760259901033,0.4647,3824.8,3824.3,2.61484205]
[1760259901203,0.1304,3824.5,3824.4,2.61478924]
[1760259901708,0.1304,3824.5,3824.4,14.5]
[1760259901911,0.764,3824.5,3824.4,2.61478924]
[1760259902536,0.6336,3824.4,3824.3,2.61484024]
[1760259902732,0.1304,3824.5,3824.4,2.61478924]
[1760259902938,0.1304,3825.2,3825.0,2.61432906]
[1760259903122,0.1304,3825.2,3824.4,0.1304]
[1760259903328,0.1304,3825.2,3824.8,2.61450936]
[1760259903528,0.1304,3825.2,3824.8,17.11450936]
[1760259903728,0.1304,3825.2,3824.9,2.61443179]
[1760259903924,0.1304,3825.2,3824.8,14.5]
[1760259904109,0.1304,3825.2,3825.1,2.61431073]
[1760259904942,0.764,3825.2,3825.1,2.61431073]
[1760259906739,0.001,3826.0,3825.5,2.61401886]
[1760259906921,0.1304,3825.8,3825.5,2.61401886]
[1760259907119,0.6336,3825.7,3825.6,2.61395267]
[1760259907324,0.1304,3825.8,3825.4,2.61409869]
[1760259907522,0.1304,3825.8,3825.6,2.61391367]
[1760259907928,0.764,3825.8,3825.7,2.61390072]
[1760259908238,0.6336,3825.7,3825.6,2.61395219]
[1760259909020,0.1304,3825.8,3825.4,17.11405466]
[1760259909211,0.1304,3825.8,3825.4,14.5]
[1760259909409,0.1304,3825.8,3825.6,2.61396887]
[1760259909815,0.1304,3825.8,3825.4,14.5]
[1760259909816,0.1304,3825.8,3825.5,2.61401346]
[1760259910012,0.1304,3825.8,3825.6,2.61395071]
[1760259910638,0.1304,3825.8,3825.5,2.61401266]
[1760259911147,0.1304,3825.8,3825.6,2.61393456]
[1760259912540,0.1304,3825.8,3825.7,2.61390072]
[1760259912746,0.001,3826.0,3825.9,2.61376408]
[1760259912945,0.001,3826.0,3825.6,1.97280315]
[1760259913422,0.001,3826.0,3825.8,2.61382107]
[1760259913625,0.001,3826.0,3825.9,2.61376408]
[1760259915849,0.001,3826.0,3825.8,2.61381693]
[1760259916069,0.001,3826.0,3825.9,2.61376408]
[1760259917159,0.001,3826.0,3825.8,2.61381626]
[1760259918224,0.001,3826.0,3825.9,2.61376408]
[1760259919034,0.001,3826.0,3825.7,2.61383494]
[1760259919223,0.001,3826.0,3825.8,14.5]
[1760259919638,0.4647,3825.9,3825.8,14.5]
[1760259919854,0.001,3826.0,3825.8,14.5]
[1760259920432,0.6855,3825.9,3825.2,2.61419579]
[1760259920640,0.6855,3825.9,3825.2,2.25889579]
[1760259920839,0.6855,3825.9,3825.3,14.5]
[1760259921135,0.6855,3825.9,3825.3,17.11416412]
[1760259921334,0.6855,3825.9,3825.3,14.5]
[1760259922161,1.4283197,3825.8,3825.3,14.5]
[1760259922323,0.4647,3825.7,3825.3,14.5]
[1760259922525,0.4647,3825.6,3825.1,2.61431002]
[1760259922921,0.6336,3825.8,3824.5,2.61467946]
[1760259923124,0.764,3825.8,3825.3,2.61414127]
[1760259923567,0.001,3826.0,3825.3,2.61410695]
[1760259923750,0.001,3826.0,3825.5,0.1304]
[1760259924356,0.001,3826.0,3825.7,2.61385668]
[1760259924933,0.001,3826.0,3824.9,2.61438996]
[1760259925146,0.001,3826.0,3825.9,2.74416408]
[1760259928560,0.001,3826.0,3825.9,0.1304]
[1760259929261,0.001,3826.0,3825.9,2.74416408]
[1760259930272,0.001,3826.0,3825.9,0.1304]
[1760259930827,3.37780209,3825.9,3825.2,0.1304]
[1760259931032,0.38209021,3825.8,3825.2,0.1304]
[1760259931351,0.9987,3825.9,3825.2,0.1304]
[1760259931352,1.4408,3825.9,3825.3,2.61412827]
[1760259931532,1.4408,3825.9,3825.2,2.74462719]
[1760259931735,1.4408,3825.9,3825.3,2.61416779]
[1760259932136,1.4408,3825.9,3825.2,2.74462992]
[1760259932965,1.4408,3825.9,3825.3,2.61417358]
[1760259933136,1.2061,3825.9,3825.3,2.61417358]
[1760259933338,3.04503579,3825.9,3825.3,2.61417358]
[1760259935572,3.04503579,3825.9,3825.4,2.61409379]
[1760259935953,1.2061,3825.9,3825.4,2.61409379]
[1760259936451,1.2061,3825.9,3825.3,2.61414893]
[1760259938080,1.2061,3825.9,3825.2,2.74461891]
[1760259938391,1.2061,3825.9,3825.1,0.002]
[1760259938392,0.6336,3825.5,3825.1,0.002]
[1760259938551,0.45580078,3825.5,3825.1,0.002]
[1760259938888,0.1304,3825.6,3825.3,2.61412813]
[1760259939049,0.1304,3825.6,3825.1,0.002]
[1760259939395,0.001,3826.4,3825.8,2.61378551]